bitfinex/quotes_ETHUSD_20260302
["timestamp","ask_amount","ask_price","bid_price","bid_amount"]
[1772424238918,0.00153886,1976.0,1975.7,4.80527945]
[1772424239214,0.00153886,1976.0,1975.8,7.01727945]
[1772424239736,0.00153886,1976.0,1975.9,4.80527945]
[1772424240813,0.00153886,1976.0,1975.3,4.80527945]
[1772424241028,0.00153886,1976.0,1975.5,4.80527945]
[1772424241029,4.44114153,1976.0,1975.5,4.80527945]
[1772424241313,4.44114153,1976.0,1975.3,4.80527945]
[1772424241519,4.44114153,1976.0,1975.3,7.01827945]
[1772424242541,4.44160267,1975.9,1975.3,7.01827945]
[1772424243046,1.26531025,1975.8,1975.3,4.80527945]
[1772424243336,1.26531025,1975.8,1975.3,7.01727945]
[1772424244317,4.43960267,1975.5,1974.9,6.07116068]
[1772424244724,4.43960267,1975.5,1974.9,4.80527945]
[1772424244924,1.26556646,1975.4,1974.9,6.07116309]
[1772424245245,1.26556646,1975.4,1975.0,4.80527945]
[1772424248057,4.43960267,1975.4,1975.0,4.80527945]
[1772424248248,4.43960267,1975.4,1974.9,2.213]
[1772424248934,4.43960267,1975.4,1974.9,3.47888433]
[1772424249133,4.43960267,1975.4,1974.9,8.28416378]
[1772424250073,4.43960267,1975.4,1974.6,0.001]
[1772424250074,5.70518459,1975.4,1974.8,7.01827945]
[1772424250286,4.43960267,1975.3,1974.8,2.213]
[1772424252266,1.26569461,1975.2,1974.8,2.213]
[1772424253140,5.70529728,1975.2,1974.8,2.213]
[1772424253341,1.26569461,1975.2,1974.8,7.01827945]
[1772424253546,4.44604994,1975.6,1974.9,4.38932967]
[1772424254639,5.71154005,1975.6,1975.1,4.38932967]
[1772424255362,1.26549011,1975.6,1975.1,4.38932967]
[1772424255776,5.71154005,1975.6,1975.1,4.38932967]
[1772424257082,0.002,1975.7,1975.3,4.38932967]
[1772424257281,0.002,1975.7,1975.4,6.70476714]
[1772424259267,0.002,1975.7,1975.4,4.49176714]
[1772424259454,0.002,1975.7,1975.3,2.213]
[1772424260408,0.002,1975.7,1975.3,6.70476714]
[1772424261103,0.002,1975.7,1975.4,4.49176714]
[1772424261267,0.002,1975.7,1975.4,5.75728626]
[1772424261458,0.002,1975.7,1975.4,4.49176714]
[1772424261659,4.56468139,1975.4,1974.9,0.001]
[1772424262295,4.56468139,1975.4,1974.6,0.001]
[1772424263292,4.56468139,1975.2,1974.6,0.001]
[1772424264379,4.56468139,1974.8,1974.3,0.001]
[1772424264968,4.56468139,1974.5,1973.8,4.49276714]
[1772424265307,4.56468139,1974.5,1973.9,1.26652526]
[1772424265511,1.26611345,1974.6,1974.0,4.493306]
[1772424268536,9.62878534,1974.7,1974.1,0.001]
[1772424269217,9.62878534,1974.7,1974.1,4.49276714]
[1772424270331,4.56468139,1974.6,1974.1,0.001]
[1772424270510,5.83080178,1974.6,1974.1,0.001]
[1772424271821,4.56468139,1974.5,1974.1,0.001]
[1772424272323,5.83044008,1975.1,1974.3,4.49176714]
[1772424272525,5.83044008,1975.1,1974.5,4.49176714]
[1772424275337,5.83044008,1975.1,1974.5,5.75790457]
[1772424275532,5.83044008,1975.1,1974.5,4.49176714]
[1772424275835,4.56468139,1974.5,1974.1,0.001]
[1772424277317,5.83088884,1974.4,1974.1,0.001]
[1772424280046,4.56468139,1974.3,1974.1,0.001]
[1772424280742,4.56468139,1974.3,1974.2,0.001]
[1772424281033,4.56468139,1974.3,1973.8,0.001]
[1772424281638,4.56468139,1974.3,1973.9,0.001]
[1772424281853,1.26633573,1974.2,1973.9,0.001]
[1772424282047,5.83101712,1974.2,1973.8,0.001]
[1772424282231,1.26633573,1974.2,1973.8,0.001]
[1772424282411,1.26633573,1974.2,1973.8,4.49276714]
[1772424283619,5.83101712,1974.2,1973.8,0.001]
[1772424283820,4.56468139,1974.1,1973.8,0.001]
[1772424284022,1.26646403,1974.0,1973.8,0.001]
[1772424285814,5.83114542,1974.0,1973.8,0.001]
[1772424286356,1.26646403,1974.0,1973.8,0.001]
[1772424286530,1.26643704,1974.1,1973.8,0.001]
[1772424287517,5.97701234,1974.1,1973.8,0.001]
[1772424288653,4.7105753,1974.0,1973.8,0.001]
[1772424289029,4.7105753,1974.0,1973.7,0.001]
[1772424289741,5.06517481,1974.3,1973.7,4.77015109]
[1772424289938,5.97684688,1974.3,1973.7,4.77015109]
[1772424291129,5.97684688,1974.3,1973.8,4.76915109]
[1772424291334,4.7105753,1974.3,1973.8,4.76915109]
[1772424292234,4.7105753,1974.3,1973.7,0.001]
[1772424292626,4.7105753,1974.1,1973.7,0.001]
[1772424292822,4.7105753,1973.9,1973.4,0.001]
[1772424293151,4.7105753,1973.9,1972.5,0.001]
[1772424293152,4.7105753,1973.4,1972.6,4.76915109]
[1772424293332,4.7105753,1973.3,1972.6,4.76915109]
[1772424294620,4.7105753,1973.1,1972.5,0.001]
[1772424296158,4.7105753,1972.9,1972.5,0.001]
[1772424296763,4.7105753,1972.7,1972.5,0.001]
[1772424296966,4.7105753,1972.7,1972.3,0.001]
[1772424297136,4.7105753,1972.6,1972.3,0.001]
[1772424297731,4.7105753,1972.4,1972.1,0.001]
[1772424298857,5.97811701,1972.4,1972.1,0.001]
[1772424299960,1.26754171,1972.4,1972.1,0.001]
[1772424300157,1.26747717,1972.5,1972.1,0.001]
[1772424300359,8.54898792,1972.6,1972.1,0.001]
[1772424300560,4.7105753,1972.5,1972.1,0.001]
[1772424301133,1.26749138,1972.4,1972.1,0.001]
[1772424301330,4.7105753,1972.3,1972.1,0.001]
[1772424301534,1.26749138,1972.4,1971.8,0.001]
[1772424301535,4.7105753,1972.1,1971.8,0.001]
[1772424301872,4.7105753,1972.1,1971.5,4.76915109]
[1772424302241,2.572,1972.2,1971.5,4.76915109]
[1772424302449,7.2825753,1972.2,1971.5,4.76915109]
[1772424302647,1.26749138,1972.4,1971.5,4.76915109]
[1772424302836,2.572,1972.3,1971.5,4.76915109]
[1772424303033,6.56757627,1972.7,1971.5,4.76915109]
[1772424303339,1.26726546,1972.8,1972.0,4.76915109]
[1772424303527,3.12426643,1972.8,1972.0,4.76915109]
[1772424303955,7.83484173,1972.8,1972.0,4.76915109]
[1772424304352,2.571,1972.7,1972.0,4.76915109]
[1772424304662,4.7105753,1972.6,1972.0,4.76915109]
[1772424305041,4.7105753,1972.6,1971.8,1.26787706]
[1772424305253,5.97800242,1972.5,1971.8,4.76915109]
[1772424306260,4.7105753,1972.4,1971.6,1.26795921]
[1772424306458,4.7105753,1972.3,1971.6,1.26795921]
[1772424306758,4.7105753,1972.3,1971.6,6.0371103]
[1772424306960,4.7105753,1972.3,1971.9,0.001]
[1772424307362,1.84532805,1972.4,1971.9,4.77015109]
[1772424309372,7.82339676,1972.4,1971.9,1.26879947]
[1772424309535,1.84532805,1972.4,1971.9,1.26879947]
[1772424310458,3.11282941,1972.4,1971.9,1.26879947]
[1772424310860,1.84532805,1972.4,1971.9,1.26879947]
[1772424311251,1.84532805,1972.4,1971.3,5.07271278]
[1772424311252,4.7105753,1972.0,1971.0,0.00153886]
[1772424311444,4.7105753,1971.5,1971.0,0.00253886]
[1772424311641,7.2775753,1971.5,1971.0,0.00253886]
[1772424312053,4.7105753,1971.8,1971.0,1.27092835]
[1772424312266,7.0225753,1971.8,1971.1,4.76915109]
[1772424313445,7.0225753,1971.8,1971.2,0.001]
[1772424313446,5.97851667,1971.7,1971.2,0.001]
[1772424313774,3.83394137,1971.7,1971.3,0.001]
[1772424313946,1.26794137,1971.7,1971.1,4.33124019]
[1772424314671,1.26794137,1971.7,1971.1,4.33024019]
[1772424314878,5.53994533,1971.7,1971.1,0.001]
[1772424315471,1.26794137,1971.7,1971.1,4.33124019]
[1772424315675,1.26794137,1971.7,1971.1,5.59951204]
[1772424315875,5.53994533,1971.7,1971.1,1.26927185]
[1772424316464,5.53994533,1971.7,1971.1,1.26827185]
[1772424317054,1.26785633,1971.9,1971.2,4.33124019]
[1772424317254,5.53979841,1972.0,1971.2,4.33124019]
[1772424317649,5.53979841,1972.0,1971.3,1.26819865]
[1772424318851,5.53979841,1972.0,1971.4,0.001]
[1772424320078,5.53979841,1972.0,1971.4,0.002]
[1772424320801,5.07099391,1972.2,1971.4,4.50541542]
[1772424320802,1.26761991,1972.2,1971.4,4.50541542]
[1772424320947,1.26758275,1972.3,1971.5,4.50341542]
[1772424321148,1.84532805,1972.4,1971.5,4.50341542]
[1772424321372,1.84532805,1972.4,1971.7,4.50341542]
[1772424321752,1.84532805,1972.4,1971.9,4.50341542]
[1772424322062,1.84532805,1972.4,1972.0,4.50341542]
[1772424322256,3.11283464,1972.4,1972.1,0.001]
[1772424322457,3.11283464,1972.4,1972.0,0.001]
[1772424323988,1.84532805,1972.4,1972.0,0.001]
[1772424324997,1.84532805,1972.4,1972.0,4.50441542]
[1772424325361,3.11283442,1972.4,1972.0,4.50441542]
[1772424325556,1.84532805,1972.4,1972.0,4.50441542]
[1772424325993,5.06950361,1972.6,1972.0,4.50441542]
[1772424325994,0.002,1972.7,1972.1,4.50341542]
[1772424326282,0.002,1972.7,1972.3,4.50341542]
[1772424327961,0.002,1972.7,1972.4,4.50441542]
[1772424328181,0.002,1972.7,1972.4,5.77086509]
[1772424328490,0.002,1972.7,1972.4,1.26744967]
[1772424330986,0.002,1972.7,1972.3,1.26751886]
[1772424331170,0.002,1972.7,1972.2,5.77198563]
[1772424332791,0.002,1972.6,1972.2,5.77198563]
[1772424333181,0.002,1972.6,1972.3,4.50341542]
[1772424334958,0.002,1972.6,1972.4,0.001]
[1772424335189,0.002,1972.6,1972.4,4.50441542]
[1772424335488,0.002,1972.7,1972.4,4.50441542]
[1772424338201,0.002,1972.7,1972.5,4.50341542]
[1772424338498,0.00253886,1973.0,1972.7,4.50341542]
[1772424339494,0.00253886,1973.0,1972.7,4.47806442]
[1772424340193,0.00253886,1973.0,1972.8,5.77063118]
[1772424341905,0.43096847,1973.6,1972.9,6.56308925]
[1772424342075,1.26672447,1973.6,1973.0,4.50341542]
[1772424342400,1.26672447,1973.6,1973.0,5.77047057]
[1772424342895,4.27578532,1973.7,1973.1,4.50341542]
[1772424343072,5.54246399,1973.7,1973.1,4.50341542]
[1772424343892,1.26661323,1973.8,1973.1,4.50341542]
[1772424344066,1.26656632,1973.9,1973.1,4.50341542]
[1772424344466,4.27578532,1973.9,1973.3,4.50341542]
[1772424346195,4.27578532,1973.9,1972.9,4.50341542]
[1772424346396,4.27578532,1973.7,1973.0,3.46806813]
[1772424346799,0.002,1973.2,1973.0,7.97148355]
[1772424346999,0.002,1973.2,1972.9,1.26716905]
[1772424347196,4.40844937,1973.2,1972.6,4.51400453]
[1772424347405,0.002,1973.2,1972.8,4.51400453]
[1772424348810,0.002,1973.2,1973.0,4.51400453]
[1772424349688,0.002,1973.2,1972.9,1.26717015]
[1772424351111,4.40844937,1973.2,1972.6,1.26729949]
[1772424353309,5.67547703,1973.2,1972.6,1.26729949]
[1772424353616,5.67543341,1973.2,1972.6,5.78130402]
[1772424353980,4.40844937,1973.2,1972.6,5.78130402]
[1772424354210,5.67543148,1973.2,1972.6,5.78130402]
[1772424354432,4.40644937,1973.1,1972.4,4.51500453]
[1772424354577,4.40644937,1973.1,1972.4,5.78245293]
[1772424355007,4.40644937,1973.1,1972.5,4.51400453]
[1772424357416,5.67351353,1973.1,1972.6,1.26736287]
[1772424358833,5.67351353,1973.1,1972.6,1.26836287]
[1772424359132,0.002,1973.2,1972.7,4.51400453]
[1772424359489,1.26897901,1973.2,1972.7,5.78125333]
[1772424359836,4.40844937,1973.2,1972.7,5.78125333]
[1772424359980,0.002,1973.2,1972.7,5.78125333]
[1772424361492,0.002,1973.2,1972.8,4.51400453]
[1772424363589,0.002,1973.2,1972.9,1.26717015]
[1772424363787,0.002,1973.5,1973.1,4.51400453]
[1772424366798,0.002,1973.5,1973.3,4.51400453]
[1772424367937,5.67298411,1973.9,1973.3,4.51400453]
[1772424368399,4.40644937,1973.8,1973.3,4.51400453]
[1772424368594,5.06739956,1974.0,1973.3,4.51400453]
[1772424368595,5.67445666,1974.0,1973.3,4.51400453]
[1772424368906,5.67445366,1974.0,1973.5,4.51400453]
[1772424369392,4.40644937,1973.9,1973.4,1.26684909]
[1772424369595,4.40644937,1973.9,1972.8,4.51400453]
[1772424369596,4.40644937,1973.6,1972.8,4.51400453]
[1772424370219,4.40644937,1973.6,1972.7,1.26729862]
[1772424370790,4.40644937,1973.4,1972.7,5.78130315]
[1772424371626,4.40644937,1973.4,1973.0,0.001]
[1772424372123,4.40844937,1973.4,1973.0,0.001]
[1772424372922,4.40644937,1973.3,1973.0,0.001]
[1772424373101,0.002,1973.4,1973.0,0.001]
[1772424373306,0.002,1973.4,1973.0,4.51500453]
[1772424374909,0.002,1973.4,1973.0,5.78206618]
[1772424376495,0.002,1973.4,1973.1,4.14592599]
[1772424380722,0.002,1973.4,1972.7,4.29937103]
[1772424380723,4.10072665,1973.4,1972.7,4.29937103]
[1772424380923,4.10072665,1973.4,1972.7,5.5666559]
[1772424381227,0.002,1973.4,1972.8,4.29837103]
[1772424382830,4.10072665,1973.4,1972.8,4.29837103]
[1772424383816,5.36563994,1973.3,1972.9,4.29837103]
[1772424384228,5.36563994,1973.3,1972.7,5.56661982]
[1772424384417,4.09872665,1973.2,1972.7,5.56661982]
[1772424385417,1.26691329,1973.3,1972.8,4.29837103]
[1772424385629,5.36563994,1973.3,1972.8,4.29837103]
[1772424385807,5.36563994,1973.3,1972.9,0.001]
[1772424386205,4.09872665,1973.3,1972.9,0.001]
[1772424386624,5.36564241,1973.3,1972.9,0.001]
[1772424388539,4.09872665,1973.2,1972.9,0.001]
[1772424391409,1.26691477,1973.3,1972.9,4.29937103]
[1772424391620,5.36564142,1973.3,1972.9,4.29937103]
[1772424392466,0.002,1973.5,1973.2,4.29837103]
[1772424394445,0.002,1973.5,1973.4,4.29837103]
[1772424395839,0.002,1973.5,1973.3,4.29837103]
[1772424396052,4.10072665,1973.5,1972.9,1.26813525]
[1772424396213,4.10072665,1973.5,1972.9,5.56650628]
[1772424396419,5.36756013,1973.5,1972.9,5.56650628]
[1772424397385,4.09872665,1973.4,1972.9,5.56650628]
[1772424397917,4.09872665,1973.4,1973.3,0.001]
[1772424398141,4.10072665,1973.4,1973.3,0.001]
[1772424405763,4.10072665,1973.4,1973.0,5.56642284]
[1772424409160,5.36757694,1973.4,1973.0,5.56642284]
[1772424409336,5.36757694,1973.4,1973.0,4.29937103]
[1772424409949,0.002,1973.4,1973.1,4.08553207]
[1772424412162,0.002,1973.4,1973.2,3.95651764]
[1772424412411,0.002,1973.5,1973.2,4.08553207]
[1772424412559,0.002,1973.3,1973.2,4.08553207]
[1772424413366,0.002,1973.3,1973.2,6.30153207]
[1772424414568,0.002,1973.5,1973.3,4.08553207]
[1772424414771,0.004,1973.5,1973.2,4.08553207]
[1772424416179,0.002,1973.5,1973.2,4.08553207]
[1772424416668,0.004,1973.5,1973.3,1.26691329]
[1772424416874,0.004,1973.5,1973.2,7.57245829]
[1772424417044,0.004,1973.5,1973.3,4.08553207]
[1772424419775,0.002,1973.6,1973.3,4.08553207]
[1772424419974,0.002,1973.7,1973.4,4.08553207]
[1772424420342,4.04360864,1973.7,1973.2,2.222]
[1772424420569,4.66037428,1973.7,1973.2,2.222]
[1772424420957,4.04360864,1973.7,1973.2,2.222]
[1772424422181,1.26672071,1973.6,1973.2,6.30753207]
[1772424422550,5.30832935,1973.6,1973.2,6.30753207]
[1772424424580,4.04160864,1973.5,1973.1,1.26803286]
[1772424425585,4.04160864,1973.5,1973.1,0.001]
[1772424426375,5.30845773,1973.4,1973.1,0.001]
[1772424426777,4.04160864,1973.4,1973.1,0.001]
[1772424430476,4.04160864,1973.3,1972.9,4.08653207]
[1772424430788,4.65837428,1973.3,1972.9,0.001]
[1772424432898,5.30858613,1973.2,1972.9,0.001]
[1772424434089,1.26697749,1973.2,1972.9,0.001]
[1772424434294,5.36438415,1973.2,1972.9,0.001]
[1772424436105,5.36438415,1973.2,1973.0,0.001]
[1772424438067,4.2194195,1973.1,1973.0,0.001]
[1772424438968,5.48646121,1973.1,1973.0,0.001]
[1772424441584,4.2194195,1973.1,1973.0,0.001]
[1772424441791,1.26702641,1973.2,1973.0,0.001]
[1772424441989,1.26699047,1973.2,1973.0,0.001]
[1772424443372,5.48640997,1973.2,1973.0,0.001]
[1772424445502,4.2194195,1973.1,1973.0,0.001]
[1772424445673,4.2194195,1973.0,1972.6,0.001]
[1772424445989,4.2194195,1973.0,1972.4,0.001]
[1772424445990,4.2194195,1972.7,1972.4,0.001]
[1772424447589,4.2194195,1972.7,1972.2,3.75775546]
[1772424447788,4.2194195,1972.3,1972.0,0.00153886]
[1772424447989,4.2194195,1972.1,1972.0,0.00153886]
[1772424449808,5.48710369,1972.1,1972.0,0.00153886]
[1772424450980,4.2194195,1972.0,1971.5,4.06121451]
[1772424452008,4.2194195,1972.0,1971.3,0.41129031]
[1772424452009,4.2194195,1971.8,1971.3,4.06121451]
[1772424452204,8.03120287,1972.0,1971.3,4.47250482]
[1772424452408,4.2194195,1972.2,1971.8,4.06121451]
[1772424453012,5.48704217,1972.2,1971.8,4.06121451]
[1772424454011,5.486892,1972.5,1972.0,4.06121451]
[1772424454212,1.26718744,1972.9,1972.3,4.47250482]
[1772424454589,3.81569454,1973.0,1972.5,4.47250482]
[1772424454794,1.27069454,1973.0,1972.5,4.06121451]
[1772424455008,5.49011404,1973.0,1972.5,4.06121451]
[1772424455204,1.27069454,1973.0,1972.5,4.06121451]
[1772424456213,0.00353886,1973.0,1972.6,4.06121451]
[1772424457181,4.22295836,1973.0,1972.4,4.06121451]
[1772424457617,4.22295836,1973.0,1972.2,5.3287846]
[1772424457916,4.22295836,1973.0,1972.3,4.06121451]
[1772424458210,4.2194195,1972.8,1972.1,5.32889658]
[1772424458513,4.2194195,1972.8,1972.1,5.32889598]
[1772424458705,4.2194195,1972.8,1972.2,4.06121451]
[1772424460212,5.48671812,1972.7,1972.2,4.06121451]
[1772424461517,4.2194195,1972.6,1972.0,5.32891856]
[1772424461718,4.2194195,1972.6,1972.0,4.06121451]
[1772424462232,1.26742712,1972.5,1971.9,4.06221451]
[1772424462520,4.2194195,1972.4,1971.9,4.06221451]
[1772424465924,5.48697004,1972.4,1971.9,4.06221451]
[1772424466507,5.48697004,1972.4,1971.9,5.33001622]
[1772424467119,4.2194195,1972.4,1971.9,5.33001622]
[1772424467317,5.48692485,1972.4,1971.9,5.33001622]
[1772424467700,5.48692485,1972.4,1972.0,4.11274326]
[1772424467900,4.2194195,1972.4,1972.0,5.38048627]
[1772424468101,5.48691988,1972.4,1972.0,4.11274326]
[1772424469590,4.16797981,1972.3,1971.9,0.001]
[1772424469787,4.16797981,1972.3,1971.9,5.38155215]
[1772424470618,4.16797981,1972.2,1971.9,0.001]
[1772424472139,1.26756202,1972.3,1971.9,4.11374326]
[1772424472634,4.16797981,1972.3,1971.9,4.11374326]
[1772424472802,5.43545676,1972.5,1972.0,4.11274326]
[1772424473005,5.43540885,1972.5,1972.0,4.11274326]
[1772424474533,5.43540885,1972.5,1972.0,4.11374326]
[1772424474835,0.002,1972.3,1972.1,4.11274326]
[1772424475693,0.002,1972.4,1972.1,4.11274326]
[1772424477218,4.16997981,1972.4,1972.1,4.11274326]
[1772424477397,4.16997981,1972.4,1972.0,5.38144858]
[1772424477597,4.16997981,1972.4,1972.0,4.11374326]
[1772424477914,0.002,1972.4,1972.0,4.11374326]
[1772424479031,0.002,1972.4,1972.0,5.38149124]
[1772424479327,0.002,1972.4,1972.1,4.11274326]
[1772424481429,0.002,1972.4,1972.2,4.11274326]
[1772424483308,4.16997981,1972.4,1972.0,4.52526177]
[1772424483511,4.16997981,1972.4,1972.0,5.7929755]
[1772424483894,4.16997981,1972.4,1972.1,4.11274326]
[1772424484320,0.002,1972.4,1972.1,4.11274326]
[1772424485929,0.002,1972.4,1972.2,4.11274326]
[1772424487105,1.26727617,1972.8,1972.3,4.11274326]
[1772424487907,7.98415618,1972.9,1972.5,4.11274326]
[1772424488709,0.002,1972.6,1972.5,4.11274326]
[1772424491202,0.002,1972.6,1972.5,5.38017038]
[1772424492206,3.81869613,1973.0,1972.6,4.11274326]
[1772424492207,1.27069613,1973.0,1972.6,4.11274326]
[1772424492407,0.00353886,1973.0,1972.6,4.52426177]
[1772424494618,0.00353886,1973.0,1972.6,5.79159814]
[1772424494826,0.00353886,1973.0,1972.7,3.71923045]
[1772424500256,0.00353886,1973.0,1972.8,3.98643346]
[1772424501014,0.002,1972.9,1972.8,3.98643346]
[1772424504755,0.002,1973.1,1972.7,3.98643346]
[1772424505314,3.9332173,1973.2,1972.8,3.98643346]
[1772424506445,4.03132401,1973.0,1972.2,3.98643346]
[1772424506649,4.03132401,1973.0,1972.3,3.98643346]
[1772424506848,4.03132401,1973.2,1972.6,3.98643346]
[1772424507021,5.29834264,1973.2,1972.7,3.98643346]
[1772424507542,4.03132401,1973.1,1972.7,3.98643346]
[1772424508749,4.03132401,1973.1,1972.6,2.238]
[1772424509050,5.29842994,1973.0,1972.6,6.22443346]
[1772424510956,4.03132401,1972.9,1972.6,6.22443346]
[1772424511440,5.29842994,1973.0,1972.6,6.22443346]
[1772424512149,5.29843741,1973.0,1972.6,6.22443346]
[1772424512650,5.29843741,1973.0,1972.7,0.001]
[1772424512836,0.002,1972.9,1972.7,0.001]
[1772424514052,4.03332401,1972.9,1972.7,0.001]
[1772424516577,0.002,1972.9,1972.7,3.98743346]
[1772424517248,0.002,1972.9,1972.7,0.001]
[1772424517448,4.03332401,1972.9,1972.7,0.001]
[1772424520761,0.002,1972.9,1972.7,3.98743346]
[1772424520966,0.002,1973.2,1972.8,3.98643346]
[1772424521991,1.26898058,1973.2,1972.8,3.98643346]
[1772424522899,1.26898058,1973.2,1972.7,0.001]
[1772424522900,4.03132401,1972.9,1972.7,0.001]
[1772424523058,4.6481943,1972.8,1972.5,0.001]
[1772424525317,5.29862263,1972.7,1972.5,0.001]
[1772424528518,4.16821495,1972.6,1972.1,0.001]
[1772424528706,1.26729862,1972.7,1972.2,3.8334052]
[1772424528912,4.81864328,1972.7,1972.2,3.8334052]
[1772424529516,3.55134466,1972.6,1972.2,3.8334052]
[1772424529816,3.55134466,1972.8,1972.3,3.8334052]
[1772424530021,4.16821495,1972.8,1972.1,6.0774052]
[1772424530692,4.16821495,1972.8,1972.1,3.8344052]
[1772424531797,3.55134466,1972.6,1972.1,3.8344052]
[1772424532303,4.16821495,1972.6,1972.1,3.8344052]
[1772424532492,4.32314292,1972.6,1972.1,3.8344052]
[1772424532689,4.32314292,1972.6,1972.1,0.001]
[1772424533726,1.26729862,1972.7,1972.1,0.001]
[1772424533727,3.55134466,1972.3,1972.1,0.001]
[1772424533924,1.26761991,1972.2,1972.1,0.001]
[1772424534312,4.81894836,1972.3,1972.1,0.001]
[1772424534509,3.55134466,1972.3,1972.1,0.001]
[1772424534812,4.81890804,1972.3,1972.1,0.001]
[1772424535806,1.26754256,1972.4,1972.1,3.8344052]
[1772424536328,3.55134466,1972.4,1972.1,3.8344052]
[1772424537099,3.55134466,1972.4,1972.1,0.001]
[1772424537501,3.55134466,1972.4,1972.2,0.001]
[1772424538005,4.32314292,1972.4,1972.2,0.001]
[1772424538414,4.8189003,1972.3,1972.2,0.001]
[1772424538612,3.55134466,1972.2,1972.0,0.00253886]
[1772424538824,4.32314292,1972.2,1971.7,6.0744052]
[1772424540632,4.81902885,1972.1,1971.7,6.0744052]
[1772424540943,4.81902885,1972.1,1971.8,3.8334052]
[1772424542451,1.26766457,1972.2,1971.8,3.8334052]
[1772424542636,8.6211811,1972.5,1971.9,3.8334052]
[1772424547147,3.55134466,1972.4,1971.9,3.8334052]
[1772424547829,3.55134466,1972.4,1971.9,5.10121153]
[1772424548029,3.55134466,1972.4,1972.0,3.8334052]
[1772424549745,4.8187956,1972.5,1972.1,3.8334052]
[1772424549961,5.07150969,1972.6,1972.2,3.8334052]
[1772424549962,1.26940719,1972.6,1972.2,3.8334052]
[1772424550365,0.002,1972.4,1972.2,3.8334052]
[1772424552765,0.002,1972.4,1972.0,5.10212461]
[1772424552971,0.002,1972.4,1972.1,2.242]
[1772424553265,0.002,1972.4,1972.1,6.0754052]
[1772424553465,0.002,1972.4,1972.2,3.8334052]
[1772424554168,0.002,1972.4,1972.1,2.242]
[1772424554169,0.002,1972.5,1972.1,3.50964226]
[1772424554339,0.002,1972.5,1972.2,3.3863037]
[1772424556074,4.73231997,1972.5,1972.1,3.3863037]
[1772424556274,3.46288507,1972.4,1972.1,3.3863037]
[1772424559011,4.7303848,1972.4,1972.1,3.3863037]
[1772424559302,3.46288507,1972.4,1972.1,3.3863037]
[1772424561104,3.46288507,1972.4,1972.0,0.001]
[1772424561105,3.88506534,1972.2,1972.0,0.001]
[1772424561605,3.37058474,1972.2,1972.0,0.001]
[1772424563681,4.6382056,1972.2,1972.0,0.001]
[1772424565802,3.37058474,1972.2,1972.0,0.001]
[1772424566103,4.64015849,1972.3,1972.0,3.67211344]
[1772424566972,3.37058474,1972.2,1972.0,0.001]
[1772424568108,4.63824984,1972.2,1972.0,0.001]
[1772424573958,3.37058474,1972.2,1972.0,0.001]
[1772424574226,4.63820751,1972.2,1972.0,0.001]
[1772424575033,1.26762277,1972.2,1972.0,3.67211344]
[1772424575823,1.26762277,1972.2,1972.1,0.001]
[1772424576151,4.64019,1972.3,1972.1,0.001]
[1772424576852,3.37058474,1972.2,1972.1,0.001]
[1772424577524,3.37058474,1972.1,1971.9,0.001]
[1772424580972,4.63827664,1972.1,1971.9,0.001]
[1772424581366,3.37058474,1972.0,1971.9,0.001]
[1772424581664,1.2676919,1972.1,1971.9,0.001]
[1772424582050,1.2676919,1972.1,1971.9,3.67211344]
[1772424583140,4.63827664,1972.1,1971.9,0.001]
[1772424584259,4.64018579,1972.3,1971.9,3.67211344]
[1772424584558,4.64015108,1972.3,1972.0,3.67111344]
[1772424585265,0.002,1972.3,1972.0,3.67111344]
[1772424585571,1.2695606,1972.3,1972.0,3.67111344]
[1772424586764,4.64014534,1972.3,1972.0,3.67111344]
[1772424587170,3.41677759,1972.2,1971.9,0.001]
[1772424587471,4.68442441,1972.2,1971.9,0.001]
[1772424587648,4.68442441,1972.2,1971.9,3.49418963]
[1772424588168,4.68442441,1972.2,1972.1,0.001]
[1772424588964,1.26764682,1972.2,1972.1,0.001]
[1772424589883,3.41877759,1972.3,1972.1,0.001]
[1772424590090,0.002,1972.4,1972.2,3.49318963]
[1772424593476,0.002,1972.4,1972.1,0.001]
[1772424593477,3.41877759,1972.4,1972.1,0.001]
[1772424593769,3.93125819,1972.3,1972.1,0.001]
[1772424596270,5.19884749,1972.3,1972.1,0.001]
[1772424596456,3.93125819,1972.3,1972.1,0.001]
[1772424598250,3.41677759,1972.2,1971.9,0.001]
[1772424598490,5.19894238,1972.1,1971.8,2.49506665]
[1772424600171,3.41677759,1972.0,1971.6,3.49318963]
[1772424600404,5.19909701,1971.9,1971.6,3.49318963]
[1772424600924,3.41677759,1971.6,1971.1,3.49318963]
[1772424601077,0.5144806,1971.4,1971.1,3.49318963]
[1772424601405,3.93125819,1971.6,1971.1,3.49318963]
[1772424602501,1.26806999,1971.5,1971.1,3.49318963]
[1772424602692,4.68484758,1971.5,1971.1,3.49318963]
[1772424603708,3.41677759,1971.5,1971.2,3.49318963]
[1772424604980,4.68472171,1971.7,1971.3,3.49318963]
[1772424605286,1.26794412,1971.7,1971.3,3.49318963]
[1772424605608,5.19919911,1971.8,1971.3,3.49318963]
[1772424606278,1.78242152,1971.8,1971.3,3.49318963]
[1772424606479,3.41677759,1971.7,1971.3,3.49318963]
[1772424607214,3.41677759,1971.7,1971.4,3.49318963]
[1772424607510,4.68472219,1971.7,1971.4,3.49318963]
[1772424607915,3.41677759,1971.7,1971.4,3.49318963]
[1772424608084,1.78238639,1971.8,1971.4,3.49318963]
[1772424608291,8.48817503,1971.9,1971.4,3.49318963]
[1772424608292,4.68462854,1971.9,1971.4,3.49318963]
[1772424608613,3.41677759,1971.8,1971.4,3.49318963]
[1772424609812,4.68469752,1971.8,1971.4,3.49318963]
[1772424610015,4.68465938,1971.8,1971.4,3.49318963]
[1772424610515,1.26788179,1971.8,1971.4,3.49318963]
[1772424610898,4.68465938,1971.8,1971.4,3.49318963]
[1772424611223,3.41677759,1971.7,1971.4,3.49318963]
[1772424612211,3.39649362,1971.7,1971.4,3.49318963]
[1772424614222,0.002,1971.7,1971.4,3.49318963]
[1772424614521,3.30683274,1971.7,1971.3,5.31709564]
[1772424614832,3.30683274,1971.7,1971.3,6.58529072]
[1772424615201,3.30683274,1971.7,1971.4,3.06809564]
[1772424615613,3.82131334,1971.7,1971.4,3.06809564]
[1772424615941,3.30483274,1971.3,1971.0,0.00153886]
[1772424616233,3.81931334,1971.3,1971.0,0.00153886]
[1772424618129,3.19712182,1971.2,1971.0,0.00153886]